bitfinex/quotes_BTCUSD_20250331
["timestamp","ask_amount","ask_price","bid_price","bid_amount"]
[1743388370784,0.001,81867.0,81866.0,0.256516]
[1743388370937,0.001,81867.0,81865.0,0.64644]
[1743388371144,0.001,81867.0,81866.0,0.35579967]
[1743388371342,0.001,81867.0,81866.0,0.39845685]
[1743388371541,0.001,81867.0,81866.0,0.51874168]
[1743388371764,0.001,81867.0,81866.0,0.66206168]
[1743388372233,0.001,81867.0,81866.0,0.66806168]
[1743388372731,0.0001208,81868.0,81867.0,0.02675485]
[1743388373068,0.0001208,81868.0,81867.0,0.22933968]
[1743388373886,0.0001208,81868.0,81867.0,0.10905485]
[1743388374102,0.0001208,81868.0,81867.0,0.25237485]
[1743388374302,0.0001208,81868.0,81867.0,0.25837485]
[1743388374442,0.0001208,81868.0,81867.0,0.25854305]
[1743388374790,0.0001208,81868.0,81867.0,0.26454305]
[1743388375350,0.0001208,81868.0,81867.0,0.25854305]
[1743388375567,0.0001208,81868.0,81867.0,0.26454305]
[1743388376380,0.0001208,81868.0,81867.0,0.25854305]
[1743388376761,0.0001208,81868.0,81867.0,0.12122305]
[1743388377062,0.0001208,81868.0,81867.0,0.26454305]
[1743388377282,0.0001208,81868.0,81867.0,0.2500022]
[1743388379183,0.0001208,81868.0,81867.0,0.26454305]
[1743388381122,0.0001208,81868.0,81867.0,0.38482788]
[1743388382179,0.0001208,81868.0,81867.0,0.43082788]
[1743388382544,0.0001208,81868.0,81867.0,0.85012788]
[1743388382745,0.0001208,81868.0,81867.0,0.84412788]
[1743388382945,0.0001208,81868.0,81867.0,0.83812788]
[1743388383144,0.0001208,81868.0,81867.0,0.84412788]
[1743388383348,0.0001208,81868.0,81867.0,0.85012788]
[1743388383818,0.0001208,81868.0,81867.0,0.84412788]
[1743388384019,0.0001208,81868.0,81867.0,0.83812788]
[1743388384166,0.0001208,81868.0,81867.0,0.84412788]
[1743388384368,8e-07,81868.0,81867.0,1.18012788]
[1743388384562,0.24417,81910.0,81904.0,0.244188]
[1743388384762,0.24417,81910.0,81904.0,0.24432953]
[1743388385055,0.01457565,81911.0,81906.0,0.012209]
[1743388385245,0.3,81911.0,81910.0,0.256378]
[1743388385452,0.0003364,81913.0,81910.0,0.012208]
[1743388385634,0.256375,81911.0,81906.0,0.012209]
[1743388385836,0.256375,81911.0,81904.0,0.01468238]
[1743388386242,0.0003362,81910.0,81904.0,0.01468238]
[1743388386638,0.012209,81906.0,81905.0,0.14328]
[1743388386838,0.012209,81906.0,81904.0,0.00014153]
[1743388386839,0.256394,81905.0,81904.0,0.00014153]
[1743388387454,0.556394,81905.0,81904.0,0.00014153]
[1743388388086,0.556394,81905.0,81904.0,0.00314153]
[1743388389225,0.556394,81905.0,81904.0,0.00514153]
[1743388389424,0.637694,81905.0,81904.0,0.00314153]
[1743388389870,0.637694,81905.0,81904.0,0.00414153]
[1743388390309,0.75453937,81905.0,81904.0,0.00414153]
[1743388390511,0.637694,81905.0,81904.0,0.00414153]
[1743388390630,0.637694,81905.0,81904.0,0.00114153]
[1743388391145,0.637694,81905.0,81904.0,0.00214153]
[1743388398106,0.637694,81905.0,81904.0,5.3e-07]
[1743388398315,0.7970321,81905.0,81904.0,5.3e-07]
[1743388398530,0.90174664,81905.0,81904.0,5.3e-07]
[1743388398680,0.90525832,81905.0,81904.0,5.3e-07]
[1743388399103,0.90525832,81905.0,81867.0,0.0001682]
[1743388399104,0.2565,81871.0,81867.0,0.0001682]
[1743388399304,0.556509,81868.0,81867.0,0.0001682]
[1743388399507,0.556531,81861.0,81860.0,0.0001683]
[1743388400594,0.55657815,81861.0,81860.0,0.0001683]
[1743388400802,0.0146175,81861.0,81860.0,0.0001683]
[1743388401007,4.715e-05,81861.0,81860.0,0.0123833]
[1743388401219,4.715e-05,81861.0,81860.0,0.25060415]
[1743388401438,4.715e-05,81861.0,81860.0,0.41898898]
[1743388401439,1.5e-07,81861.0,81860.0,0.41898898]
[1743388401649,1.5e-07,81861.0,81860.0,0.83828898]
[1743388402880,0.00100015,81861.0,81860.0,0.84328898]
[1743388403084,0.13715668,81910.0,81901.0,0.012209]
[1743388403301,4.718e-05,81900.0,81899.0,0.01221]
[1743388403508,4.718e-05,81900.0,81897.0,0.244206]
[1743388403907,0.3,81898.0,81897.0,0.244206]
[1743388404574,0.3,81898.0,81894.0,0.14328]
[1743388404779,0.244213,81896.0,81894.0,0.14328]
[1743388404987,0.012211,81891.0,81884.0,0.092612]
[1743388405162,0.01221,81894.0,81887.0,0.012211]
[1743388405464,0.01221,81895.0,81889.0,0.012211]
[1743388405604,0.01221,81895.0,81890.0,0.012211]
[1743388405806,0.3,81898.0,81893.0,0.012211]
[1743388406005,0.256419,81897.0,81890.0,0.256438]
[1743388406431,0.3,81898.0,81897.0,0.244209]
[1743388406631,0.10882051,81899.0,81898.0,0.09261]
[1743388406856,4.718e-05,81900.0,81899.0,0.256413]
[1743388407030,4.718e-05,81900.0,81899.0,0.31905385]
[1743388408053,4.718e-05,81900.0,81899.0,0.32405385]
[1743388408664,4.718e-05,81900.0,81899.0,0.31905385]
[1743388409065,4.718e-05,81900.0,81899.0,0.33105385]
[1743388411359,4.718e-05,81900.0,81899.0,0.47433385]
[1743388414822,4.718e-05,81900.0,81899.0,0.59461868]
[1743388415067,1.8e-07,81900.0,81899.0,1.40091868]
[1743388415298,1.8e-07,81900.0,81899.0,0.95263868]
[1743388415522,1.8e-07,81900.0,81899.0,1.09607868]
[1743388415749,1.8e-07,81900.0,81899.0,0.83235385]
[1743388415959,1.8e-07,81900.0,81899.0,0.97583385]
[1743388416375,1.8e-07,81900.0,81899.0,0.83235385]
[1743388416698,1.8e-07,81900.0,81899.0,0.97583385]
[1743388417730,0.012208,81908.0,81899.0,0.012]
[1743388417974,0.012209,81903.0,81899.0,0.012]
[1743388418846,0.012209,81905.0,81899.0,0.006]
[1743388419103,0.256394,81905.0,81899.0,0.011]
[1743388419401,0.01221,81900.0,81899.0,0.005]
[1743388419782,0.01221,81900.0,81899.0,0.009]
[1743388419985,0.01221,81900.0,81899.0,0.004]
[1743388420352,0.01221,81900.0,81899.0,0.005]
[1743388420801,0.01221,81900.0,81899.0,0.009]
[1743388421821,0.3,81904.0,81900.0,0.2442]
[1743388422365,0.0003362,81910.0,81909.0,0.012208]
[1743388422605,0.0003362,81910.0,81907.0,0.012208]
[1743388422804,0.0003362,81910.0,81908.0,0.244176]
[1743388423006,0.0003362,81910.0,81909.0,0.012208]
[1743388423220,0.256384,81908.0,81902.0,0.256403]
[1743388423422,0.256384,81908.0,81901.0,0.012209]
[1743388423651,0.244182,81906.0,81900.0,0.244197]
[1743388423854,0.256391,81906.0,81899.0,0.01621]
[1743388424122,0.012209,81906.0,81901.0,0.244197]
[1743388424313,0.0125442,81910.0,81903.0,0.244191]
[1743388424535,0.2567152,81910.0,81903.0,0.244191]
[1743388424719,0.256384,81908.0,81903.0,0.012209]
[1743388425622,0.256384,81908.0,81902.0,0.016209]
[1743388425821,0.256384,81908.0,81902.0,0.012209]
[1743388426170,0.244188,81904.0,81903.0,0.004]
[1743388426389,0.256397,81904.0,81903.0,0.004]
[1743388426753,0.556406,81901.0,81900.0,0.004]
[1743388426955,0.256422,81896.0,81895.0,0.6344]
[1743388427338,0.244208,81898.0,81895.0,0.6344]
[1743388428604,0.256422,81896.0,81895.0,0.6344]
[1743388428804,0.256382,81909.0,81899.0,0.244203]
[1743388428981,0.312208,81908.0,81895.0,0.6344]
[1743388429192,0.256413,81899.0,81895.0,0.6344]
[1743388429666,0.244197,81902.0,81895.0,0.6344]
[1743388429873,0.3,81904.0,81903.0,0.005]
[1743388430094,0.312209,81904.0,81903.0,0.005]
[1743388430324,0.25641,81900.0,81895.0,0.6384]
[1743388430500,0.25641,81900.0,81895.0,0.6424]
[1743388430720,0.25641,81900.0,81895.0,0.6344]
[1743388431131,0.256416,81898.0,81895.0,0.6344]
[1743388431389,0.01221,81896.0,81895.0,0.6344]
[1743388431878,0.256416,81898.0,81895.0,0.6344]
[1743388432074,0.256422,81896.0,81895.0,0.6344]
[1743388432421,0.256421,81897.0,81895.0,0.6344]
[1743388432628,0.256421,81897.0,81895.0,0.6384]
[1743388432830,0.256421,81897.0,81895.0,0.6424]
[1743388433227,0.256421,81897.0,81895.0,0.6384]
[1743388433424,0.256421,81897.0,81895.0,0.6434]
[1743388433681,0.01221,81898.0,81895.0,0.6394]
[1743388433842,0.256416,81898.0,81895.0,0.6394]
[1743388434262,0.244212,81896.0,81895.0,0.6344]
[1743388434463,0.244212,81896.0,81895.0,0.6384]
[1743388434669,0.256422,81896.0,81895.0,0.6384]
[1743388435498,0.01221,81896.0,81895.0,0.6384]
[1743388435651,0.01221,81896.0,81895.0,0.6434]
[1743388435860,0.01221,81896.0,81895.0,0.6384]
[1743388436320,0.01221,81896.0,81895.0,0.6394]
[1743388436813,0.01221,81896.0,81895.0,0.6434]
[1743388437212,0.01221,81896.0,81895.0,0.6394]
[1743388437562,0.01221,81896.0,81895.0,0.6445682]
[1743388437869,0.02652009,81896.0,81895.0,0.6445682]
[1743388438117,0.01221,81896.0,81895.0,0.0101682]
[1743388439321,0.43018262,81896.0,81895.0,0.0101682]
[1743388439558,0.43928486,81896.0,81895.0,2e-07]
[1743388439775,0.51568486,81896.0,81895.0,2e-07]
[1743388439979,0.556506,81869.0,81861.0,0.0001682]
[1743388440185,0.556506,81869.0,81868.0,0.00021538]
[1743388442171,0.556506,81869.0,81868.0,0.00421538]
[1743388442405,0.556506,81869.0,81868.0,0.00021538]
[1743388442606,0.556506,81869.0,81868.0,0.00321538]
[1743388442766,0.556506,81869.0,81868.0,0.00621538]
[1743388443178,0.556506,81869.0,81868.0,0.00321538]
[1743388443385,0.556506,81869.0,81868.0,0.00521538]
[1743388443585,0.6572775,81869.0,81868.0,0.00521538]
[1743388444691,0.8005575,81869.0,81868.0,0.00521538]
[1743388445592,0.699786,81869.0,81868.0,0.00221538]
[1743388445811,0.556506,81869.0,81868.0,0.00421538]
[1743388446012,0.556506,81869.0,81868.0,0.00221538]
[1743388446234,0.556506,81869.0,81868.0,0.00321538]
[1743388446671,0.556506,81869.0,81868.0,0.00121538]
[1743388446793,0.556506,81869.0,81868.0,0.00021538]
[1743388446999,0.63901629,81869.0,81868.0,0.00221538]
[1743388447239,0.63901629,81869.0,81868.0,0.00321538]
[1743388448056,0.556506,81869.0,81868.0,0.00321538]
[1743388449068,0.012214,81872.0,81868.0,0.00321538]
[1743388449242,0.012212,81883.0,81872.0,0.012214]
[1743388449442,0.012212,81883.0,81877.0,0.012213]
[1743388449645,0.256471,81880.0,81873.0,0.0498]
[1743388449805,0.012213,81878.0,81873.0,0.062014]
[1743388450229,0.012212,81880.0,81874.0,0.25649]
[1743388450432,0.012213,81879.0,81873.0,0.062014]
[1743388451062,0.012213,81877.0,81873.0,0.0508]
[1743388451205,0.012213,81878.0,81873.0,0.0508]
[1743388451410,0.256458,81885.0,81880.0,0.012212]
[1743388451612,0.012212,81885.0,81878.0,0.256478]
[1743388451794,0.012212,81886.0,81880.0,0.012212]
[1743388451996,0.012212,81885.0,81878.0,0.256477]
[1743388452201,0.25644,81891.0,81884.0,0.012212]
[1743388452458,0.244233,81889.0,81881.0,0.012212]
[1743388452664,0.012211,81889.0,81881.0,0.256467]
[1743388452985,0.012211,81889.0,81883.0,0.012212]
[1743388453203,0.0003364,81895.0,81890.0,0.244228]
[1743388453378,0.001,81891.0,81890.0,0.077]
[1743388453956,0.012211,81893.0,81890.0,0.077]
[1743388454584,0.0003364,81895.0,81890.0,0.077]
[1743388454745,0.0125464,81895.0,81890.0,0.077]
[1743388454946,0.01221,81894.0,81890.0,0.077]
[1743388455145,0.012211,81891.0,81890.0,0.077]
[1743388455813,0.012211,81891.0,81890.0,0.079]
[1743388456190,0.012211,81891.0,81890.0,0.081]
[1743388458584,0.0003364,81895.0,81894.0,0.01221]
[1743388458790,0.0003364,81895.0,81894.0,0.305528]
[1743388459084,0.0003364,81895.0,81894.0,0.46458885]
[1743388459867,0.0003364,81895.0,81894.0,0.46658885]
[1743388460166,0.0003364,81895.0,81894.0,0.49139286]
[1743388460600,0.0003364,81895.0,81894.0,1.12591286]
[1743388462163,0.0003364,81895.0,81894.0,1.10110885]
[1743388463706,0.0003364,81895.0,81894.0,1.17710885]
[1743388473608,0.0003364,81895.0,81894.0,1.03258885]
[1743388473819,0.0003364,81895.0,81894.0,1.17642885]
[1743388476363,0.0003364,81895.0,81894.0,1.17706885]
[1743388480228,0.0003364,81895.0,81894.0,1.037428]
[1743388481094,0.0003364,81895.0,81894.0,0.63652]
[1743388481541,0.0003364,81895.0,81894.0,0.64873]
[1743388483368,0.0003364,81895.0,81894.0,0.63652]
[1743388483565,0.2567614,81895.0,81894.0,0.63652]
[1743388484579,0.0003364,81895.0,81894.0,0.63652]
[1743388484778,0.0125464,81895.0,81894.0,0.63652]
[1743388486110,0.0125464,81895.0,81894.0,0.6366882]
[1743388486324,0.06772741,81895.0,81894.0,0.0021682]
[1743388486527,0.36772741,81895.0,81894.0,0.0021682]
[1743388487014,0.3125464,81895.0,81894.0,0.0021682]
[1743388489290,0.3125464,81895.0,81894.0,0.0011682]
[1743388489488,0.3125464,81895.0,81894.0,0.0021682]
[1743388490059,0.3125464,81895.0,81894.0,0.0011682]
[1743388491180,0.3949464,81895.0,81894.0,0.0011682]
[1743388491953,0.3959464,81895.0,81894.0,0.0011682]
[1743388492153,0.3959464,81895.0,81894.0,0.0001682]
[1743388492306,0.49377487,81895.0,81894.0,0.0001682]
[1743388492508,0.49477487,81895.0,81894.0,0.0001682]
[1743388492694,0.54017487,81895.0,81894.0,0.0001682]
[1743388493641,0.57422835,81895.0,81894.0,2e-07]
[1743388494062,0.012211,81891.0,81890.0,4e-07]
[1743388494266,0.51489583,81891.0,81890.0,4.758e-05]
[1743388494728,0.28425738,81891.0,81890.0,4.758e-05]
[1743388494964,0.57474886,81891.0,81890.0,5.8e-07]
[1743388495093,0.57974886,81891.0,81890.0,5.8e-07]
[1743388495296,0.62514886,81891.0,81890.0,5.8e-07]
[1743388495497,0.74543369,81891.0,81890.0,5.8e-07]
[1743388496181,0.74443369,81891.0,81890.0,5.8e-07]
[1743388496355,0.59409538,81891.0,81890.0,5.8e-07]
[1743388496554,0.59009538,81891.0,81890.0,5.8e-07]
[1743388496700,0.59609538,81891.0,81890.0,5.8e-07]
[1743388497101,0.59209538,81891.0,81890.0,5.8e-07]
[1743388497521,0.6457189,81891.0,81890.0,5.8e-07]
[1743388497735,0.6823189,81891.0,81890.0,5.8e-07]
[1743388498532,0.6823189,81891.0,81890.0,0.00016878]
[1743388501048,0.267438,81891.0,81890.0,0.00016878]
[1743388501998,0.261438,81891.0,81890.0,0.00016878]
[1743388502427,0.257438,81891.0,81890.0,0.00016878]
[1743388502627,0.256438,81891.0,81890.0,0.00016878]
[1743388502835,0.258438,81891.0,81890.0,0.00016878]
[1743388503250,0.29351034,81891.0,81890.0,0.00016878]
[1743388503781,0.32108851,81891.0,81890.0,0.00016878]
[1743388505797,0.561438,81891.0,81890.0,0.00016878]
[1743388508628,0.3,81891.0,81890.0,0.00016878]
[1743388508857,0.3,81891.0,81890.0,0.04746878]
[1743388509062,0.003,81891.0,81890.0,0.38510978]
[1743388509616,0.003,81891.0,81890.0,0.12866878]
[1743388509818,0.0033364,81891.0,81890.0,0.12866878]
[1743388509933,0.0033364,81891.0,81890.0,0.14087978]
[1743388510339,0.0033364,81891.0,81890.0,0.12866878]
[1743388513485,0.0033364,81891.0,81890.0,0.14087978]
[1743388514127,0.0033364,81891.0,81890.0,0.15786283]
[1743388514327,0.0033364,81891.0,81890.0,0.1578625]
[1743388514581,0.0033364,81891.0,81890.0,0.15542063]
[1743388514709,0.0033364,81891.0,81890.0,0.25155985]
[1743388514922,0.0033364,81891.0,81890.0,0.36940282]
[1743388515351,0.0003364,81895.0,81894.0,0.27096885]
[1743388515557,0.0003362,81926.0,81909.0,0.382081]
[1743388515817,0.0003362,81926.0,81909.0,1.17302185]
[1743388515972,0.0003362,81926.0,81909.0,1.19960932]
[1743388516458,0.0003362,81926.0,81909.0,1.19860932]
[1743388516668,0.0003362,81926.0,81909.0,1.19760932]
[1743388517086,0.0013362,81910.0,81909.0,1.19760932]
[1743388517288,0.0013362,81910.0,81909.0,1.22186334]
[1743388517723,0.0013362,81910.0,81909.0,1.23554292]
[1743388518082,0.0023362,81910.0,81909.0,1.23854292]
[1743388518295,0.0023362,81910.0,81909.0,1.22486334]
[1743388521456,0.0023362,81910.0,81909.0,1.22519954]
[1743388524846,0.0023362,81910.0,81909.0,1.18347122]
[1743388525041,0.0023362,81910.0,81909.0,1.1592172]
[1743388526470,0.0023362,81910.0,81909.0,1.17375805]
[1743388526852,0.0023362,81910.0,81909.0,1.29404288]
[1743388527805,0.0023362,81910.0,81909.0,1.17375805]
[1743388529939,0.0023362,81910.0,81909.0,1.29404288]
[1743388533754,0.0003362,81926.0,81912.0,0.256372]
[1743388533955,0.0003362,81926.0,81912.0,0.94479768]
[1743388534652,0.0003362,81926.0,81925.0,0.385631]
[1743388534825,0.0003362,81926.0,81925.0,1.02843328]
[1743388535190,0.0003362,81926.0,81925.0,1.04084451]
[1743388535813,0.00080793,81926.0,81925.0,1.04084451]
[1743388536791,0.00080793,81926.0,81925.0,1.04684451]
[1743388537036,0.00080793,81926.0,81925.0,1.05284451]
[1743388537934,0.00080793,81926.0,81925.0,1.47214451]
[1743388538936,0.00080793,81926.0,81925.0,1.49489696]
[1743388539560,0.00080793,81926.0,81925.0,1.49989696]
[1743388540547,0.00080793,81926.0,81925.0,1.49489696]
[1743388541709,0.00080793,81926.0,81925.0,1.49989696]
[1743388542013,0.00080793,81926.0,81925.0,1.49489696]
[1743388542513,0.00080793,81926.0,81925.0,1.51952726]
[1743388543013,0.00080793,81926.0,81925.0,1.52452726]
[1743388543672,0.00080793,81926.0,81925.0,1.53356273]
[1743388545409,0.00080793,81926.0,81925.0,1.53845473]
[1743388546457,0.00080793,81926.0,81925.0,2.17253473]
[1743388547529,0.00080793,81926.0,81925.0,2.19753473]
[1743388548680,0.00080793,81926.0,81925.0,2.32643473]
[1743388550618,0.00080793,81926.0,81925.0,2.32643473]
[1743388551804,0.0003364,81929.0,81928.0,0.561321]
[1743388551994,0.00047784,81929.0,81928.0,1.19554668]
[1743388552563,3.1e-07,81935.0,81934.0,0.03]
[1743388552766,3.1e-07,81935.0,81934.0,0.84782768]
[1743388552971,0.0003368,81963.0,81938.0,0.65093085]
[1743388553192,0.01945212,81946.0,81938.0,0.77121568]
[1743388554049,0.01945212,81946.0,81938.0,0.77921568]
[1743388554245,0.00404712,81939.0,81938.0,0.77921568]
[1743388555104,0.00404712,81939.0,81938.0,0.80196813]
[1743388555314,0.00404712,81939.0,81938.0,0.83763101]
[1743388555712,0.00404712,81939.0,81938.0,1.25693101]
[1743388555946,0.00404712,81939.0,81938.0,1.89093101]
[1743388556166,0.00404712,81939.0,81938.0,1.88693101]
[1743388556587,0.00404712,81939.0,81938.0,1.88893101]
[1743388556960,0.00421532,81939.0,81938.0,1.88293101]
[1743388557162,0.00421532,81939.0,81938.0,1.89493101]
[1743388557365,0.00421532,81939.0,81938.0,1.88893101]
[1743388557727,0.00421532,81939.0,81938.0,1.89493101]
[1743388557927,0.00421532,81939.0,81938.0,1.91943593]
[1743388558985,0.00421532,81939.0,81938.0,1.92443593]
[1743388559166,0.00421532,81939.0,81938.0,2.06759593]
[1743388560138,2.1e-07,81955.0,81954.0,0.012201]
[1743388560351,1.3e-07,81960.0,81959.0,0.27076585]
[1743388560558,1.3e-07,81960.0,81959.0,0.47595068]
[1743388560736,4.726e-05,81960.0,81959.0,0.47595068]
[1743388560978,4.726e-05,81960.0,81959.0,0.52501276]
[1743388561268,2.6e-07,81960.0,81959.0,1.24431276]
[1743388561432,6.3e-07,81969.0,81968.0,0.02673985]
[1743388561644,4.774e-05,81969.0,81968.0,1.47314168]
[1743388562056,4.774e-05,81969.0,81968.0,1.49589413]
[1743388562264,4.774e-05,81969.0,81968.0,1.56059073]
[1743388562806,4.774e-05,81969.0,81968.0,1.56469477]
[1743388563411,4.774e-05,81969.0,81968.0,1.57069477]
[1743388563995,4.774e-05,81969.0,81968.0,1.150981]
[1743388564250,4.774e-05,81969.0,81968.0,1.156981]
[1743388565050,4.774e-05,81969.0,81968.0,1.17152185]
[1743388567041,4.774e-05,81969.0,81968.0,0.6929284]
[1743388567244,4.774e-05,81969.0,81968.0,1.06802845]
[1743388567654,4.774e-05,81969.0,81968.0,1.045276]
[1743388568901,4.774e-05,81969.0,81968.0,0.78908]
[1743388569085,4.774e-05,81969.0,81968.0,0.78308]
[1743388569293,4.774e-05,81969.0,81968.0,0.801279]
[1743388569525,4.774e-05,81969.0,81968.0,1.039276]
[1743388569651,4.774e-05,81969.0,81968.0,0.78908]
[1743388569852,0.25624074,81969.0,81968.0,0.78908]
[1743388570120,0.27535319,81969.0,81968.0,0.7834162]
[1743388570317,0.27552129,81969.0,81968.0,0.7774162]
[1743388570537,0.03152729,81969.0,81968.0,0.7854162]
[1743388570736,0.03152729,81969.0,81968.0,0.6422962]
[1743388570936,0.12092729,81969.0,81968.0,0.6422962]
[1743388571077,0.12092729,81969.0,81968.0,0.6382962]
[1743388571277,0.12092729,81969.0,81968.0,0.6412962]
[1743388571845,0.12092729,81969.0,81968.0,0.0073362]
[1743388572047,0.42092729,81969.0,81968.0,0.0073362]
[1743388572244,0.42092729,81969.0,81968.0,0.0033362]
[1743388572461,0.42092729,81969.0,81968.0,0.0063362]
[1743388572667,0.42092729,81969.0,81968.0,0.0033362]
[1743388573267,0.243994,81970.0,81968.0,0.0033362]
[1743388573616,0.03131398,81969.0,81968.0,0.0033362]
[1743388574024,0.06650673,81969.0,81968.0,0.0003362]
[1743388574272,0.10056021,81969.0,81968.0,0.0003362]
[1743388574825,0.07583108,81969.0,81968.0,0.0003362]
[1743388575034,0.012203,81945.0,81944.0,0.63384]
[1743388575336,0.256266,81946.0,81944.0,0.63388711]
[1743388575745,0.012203,81945.0,81944.0,0.63388711]
[1743388576368,0.27538432,81946.0,81944.0,0.63388711]
[1743388576772,0.27538432,81946.0,81944.0,0.64188711]
[1743388576972,0.27538432,81946.0,81944.0,0.63788711]
[1743388577274,0.256266,81946.0,81944.0,0.63788711]
[1743388577648,0.256254,81950.0,81944.0,0.63788711]
[1743388577854,0.012202,81949.0,81944.0,0.63788711]
[1743388578027,0.244057,81948.0,81944.0,0.63788711]
[1743388578210,0.244063,81946.0,81944.0,0.64188711]
[1743388578409,0.012203,81945.0,81944.0,0.64188711]
[1743388578618,0.012203,81945.0,81944.0,0.63388711]
[1743388579040,0.012203,81945.0,81944.0,0.63988711]
[1743388579252,0.012203,81945.0,81944.0,0.63688711]
[1743388579478,0.012203,81945.0,81944.0,0.63388711]
[1743388579679,0.012203,81945.0,81944.0,0.63788711]
[1743388579887,0.012203,81945.0,81944.0,0.64188711]
[1743388580082,0.03132159,81945.0,81944.0,0.64188711]
[1743388580498,0.26318459,81945.0,81944.0,0.64188711]
[1743388580731,0.27538759,81945.0,81944.0,0.64188711]
[1743388580934,0.01911859,81945.0,81944.0,0.64188711]
[1743388581547,0.01911859,81945.0,81944.0,0.64222331]
[1743388581698,0.03132159,81945.0,81944.0,0.00838331]
[1743388585886,0.012203,81945.0,81944.0,0.00838331]
[1743388586451,0.244063,81946.0,81944.0,0.00838331]
[1743388586694,0.012203,81945.0,81944.0,0.00838331]
[1743388587433,0.36722714,81945.0,81944.0,0.00838331]
[1743388588038,0.312203,81945.0,81944.0,0.00438331]
[1743388588256,0.312203,81945.0,81944.0,0.00038331]
[1743388588459,0.312203,81945.0,81944.0,0.00438331]
[1743388589200,0.312203,81945.0,81944.0,0.00038331]
[1743388591893,0.32154678,81945.0,81944.0,0.00038331]
[1743388592126,0.41173905,81945.0,81944.0,0.00038331]
[1743388592539,0.32154678,81945.0,81944.0,0.00038331]
[1743388595228,0.02551339,81949.0,81944.0,0.00038331]
[1743388595229,0.25736639,81949.0,81944.0,0.00038331]
[1743388595447,0.256269,81945.0,81944.0,0.00038331]
[1743388595916,0.27538918,81945.0,81944.0,0.00038331]
[1743388596928,0.27538918,81945.0,81944.0,0.00138331]
[1743388597087,0.33639335,81945.0,81944.0,0.00138331]
[1743388597288,0.256269,81945.0,81944.0,0.00138331]
[1743388599304,0.556269,81945.0,81944.0,0.00138331]
[1743388600272,0.57539087,81945.0,81944.0,0.00138331]
[1743388600622,0.57539087,81945.0,81944.0,0.00138331]
[1743388601189,0.57539087,81945.0,81944.0,0.00038331]
[1743388601835,0.68979784,81945.0,81944.0,0.00038331]
[1743388603933,0.57539087,81945.0,81944.0,0.00038331]
[1743388605241,0.01912187,81945.0,81944.0,0.00038331]
[1743388605451,0.03132487,81945.0,81944.0,0.00038331]
[1743388607180,0.01332728,81949.0,81945.0,0.012203]
[1743388607361,0.012202,81951.0,81945.0,0.012203]
[1743388607560,0.256256,81950.0,81945.0,0.02421233]
[1743388607858,0.012201,81956.0,81950.0,0.244051]
[1743388608061,0.244009,81964.0,81950.0,0.244051]
[1743388608062,0.244027,81958.0,81953.0,0.0831]
[1743388608439,0.012201,81956.0,81953.0,0.0831]
[1743388608638,0.256235,81956.0,81954.0,0.0474]
[1743388610181,0.27535091,81956.0,81954.0,0.0474]
[1743388611661,0.01911591,81956.0,81955.0,0.256237]
[1743388614435,0.01911591,81956.0,81954.0,0.0474]
[1743388614684,0.012201,81955.0,81954.0,0.0474]
[1743388614862,0.25624,81954.0,81953.0,0.0831]
[1743388615273,0.012201,81955.0,81953.0,0.0831]
[1743388615567,0.25624,81954.0,81953.0,0.0831]
[1743388618408,0.256231,81957.0,81953.0,0.0831]
[1743388618571,0.012201,81954.0,81953.0,0.0831]
[1743388618967,0.0122,81964.0,81953.0,0.105726]
[1743388619168,0.0122,81964.0,81953.0,0.0831]
[1743388619368,0.02592908,81961.0,81954.0,0.012201]
[1743388619551,0.256222,81960.0,81953.0,0.095302]
[1743388619969,0.244027,81958.0,81953.0,0.0831]
[1743388620393,0.0191154,81957.0,81953.0,0.0831]
[1743388622729,0.0191154,81957.0,81953.0,0.095302]
[1743388624225,0.0191154,81957.0,81954.0,0.244039]
[1743388624433,0.0191154,81957.0,81954.0,0.25624]
[1743388624664,0.0191154,81957.0,81955.0,0.256234]
[1743388624869,0.0191154,81957.0,81956.0,0.143001]
[1743388625762,0.2631454,81957.0,81956.0,0.1308]
[1743388625961,0.244046,81952.0,81948.0,0.0826]
[1743388626165,0.256255,81950.0,81948.0,0.0826]
[1743388626296,0.256269,81945.0,81943.0,0.71664]
[1743388626496,0.256269,81945.0,81943.0,0.63404]
[1743388627925,0.256269,81945.0,81944.0,0.00138331]
[1743388630051,0.27538714,81945.0,81944.0,0.00138331]
[1743388632237,0.01911814,81945.0,81944.0,0.24545231]
[1743388632454,0.03132114,81945.0,81944.0,0.00138331]
[1743388632677,0.01911814,81945.0,81944.0,0.00138331]
[1743388633445,0.01911814,81945.0,81944.0,0.38425531]
[1743388633645,0.01911814,81945.0,81944.0,0.39879616]
[1743388634637,0.01911814,81945.0,81944.0,0.41164254]
[1743388635640,0.01911814,81945.0,81944.0,0.38425531]
[1743388635798,0.03132114,81945.0,81944.0,0.08208331]
[1743388636000,0.08700588,81945.0,81944.0,0.00138331]
[1743388636498,0.03132114,81945.0,81944.0,0.00138331]
[1743388637112,0.012203,81945.0,81944.0,0.00138331]
[1743388640257,0.03132178,81945.0,81944.0,0.00138331]
[1743388642111,0.03132178,81945.0,81944.0,0.09428631]
[1743388642112,0.01911878,81945.0,81944.0,0.09428631]
[1743388643554,0.01911878,81945.0,81944.0,0.08208331]
[1743388643786,0.27538778,81945.0,81944.0,0.00138331]
[1743388644024,0.01911878,81945.0,81944.0,0.00138331]
[1743388644499,0.26318478,81945.0,81944.0,0.00138331]
[1743388644956,0.26318478,81945.0,81944.0,0.24545231]
[1743388644957,0.01911878,81945.0,81944.0,0.24545231]
[1743388645376,0.01911878,81945.0,81944.0,0.25765531]
[1743388645584,0.01911878,81945.0,81944.0,0.32702614]
[1743388645726,0.01911878,81945.0,81944.0,0.25765531]
[1743388646969,0.256246,81953.0,81947.0,0.256261]
[1743388647374,0.02507008,81954.0,81950.0,0.012202]
[1743388647375,0.01286908,81954.0,81950.0,0.012202]
[1743388647576,0.012201,81955.0,81950.0,0.012202]
[1743388648487,0.01348429,81955.0,81950.0,0.012202]
[1743388648692,0.244009,81965.0,81950.0,0.012202]
[1743388648693,0.4181,81981.0,81964.0,0.0122]
[1743388648917,0.0001681,81970.0,81967.0,0.0122]
[1743388649449,0.243979,81975.0,81969.0,0.012199]
[1743388649880,0.25737765,81975.0,81969.0,0.012199]
[1743388650088,0.01911278,81974.0,81969.0,0.012199]
[1743388650701,0.01911278,81974.0,81973.0,0.012199]
[1743388650906,0.01911278,81974.0,81973.0,0.059999]
[1743388653152,0.01911278,81974.0,81973.0,0.0478]
[1743388653741,0.243982,81973.0,81971.0,0.14316]
[1743388654157,0.03131078,81974.0,81971.0,0.14316]